bitfinex-derivatives/quotes_ETHF0:USTF0_20240829
["timestamp","ask_amount","ask_price","bid_price","bid_amount"]
[1724946152547,0.38637,2587.3,2586.9,3.8656]
[1724946152749,0.38637,2587.3,2586.9,1.27822]
[1724946152750,4.29594,2587.3,2586.9,1.27822]
[1724946152952,4.2184218,2587.2,2586.9,42.07822]
[1724946153146,0.3864,2587.1,2586.9,42.07822]
[1724946153665,0.3864,2587.1,2586.8,0.00579721]
[1724946153666,0.38642,2586.9,2586.8,0.00579721]
[1724946154957,9.59412442,2586.9,2586.8,0.00579721]
[1724946155854,18.80192442,2586.9,2586.8,0.00579721]
[1724946156049,0.3865,2586.4,2586.0,0.98793016]
[1724946156256,0.38649,2586.5,2586.0,1.87713016]
[1724946156454,0.38649,2586.5,2586.2,0.38652]
[1724946156650,0.3865,2586.4,2586.2,0.38652]
[1724946156960,0.3865,2586.4,2586.0,1.28154721]
[1724946156961,0.38651,2586.3,2586.0,1.28154721]
[1724946157364,8.14503223,2586.4,2586.1,0.38654]
[1724946157558,0.38651,2586.3,2586.1,0.38654]
[1724946157863,8.14503223,2586.4,2586.1,0.38654]
[1724946158354,6.93006721,2586.6,2586.3,0.38651]
[1724946159361,3.21359721,2586.6,2586.5,0.38648]
[1724946159857,3.21359721,2586.6,2586.5,4.25288]
[1724946161063,0.00579721,2586.6,2586.5,4.25288]
[1724946161463,0.00579721,2586.6,2586.5,45.05288]
[1724946163060,0.00579721,2586.6,2586.5,55.22689]
[1724946163357,0.38643,2586.9,2586.6,0.38647]
[1724946163557,0.38643,2586.9,2586.7,0.38645]
[1724946163760,4.67953004,2587.0,2586.7,0.38645]
[1724946163955,4.67953004,2587.0,2586.8,0.38644]
[1724946164160,6.9242,2587.1,2586.6,0.8552]
[1724946164384,0.38641,2587.0,2586.8,0.38643]
[1724946164774,6.54359721,2587.1,2587.0,0.38641]
[1724946165072,3.21359721,2587.1,2587.0,0.38641]
[1724946166665,3.21359721,2587.1,2586.9,0.38641]
[1724946167074,3.59998721,2587.1,2586.9,0.38641]
[1724946167278,0.38642,2587.0,2586.6,0.8552]
[1724946167470,0.38642,2587.0,2586.8,0.38643]
[1724946167769,3.33,2586.9,2586.6,0.8552]
[1724946167970,3.33,2586.9,2586.5,0.38648]
[1724946167971,3.71646,2586.7,2586.5,0.38648]
[1724946168275,3.71646,2586.7,2586.4,1.25489]
[1724946168276,4.46865897,2586.6,2586.4,1.25489]
[1724946168468,0.38648,2586.5,2586.3,0.3865]
[1724946168669,4.46866897,2586.6,2586.4,0.3865]
[1724946168869,4.08218897,2586.6,2586.5,0.38648]
[1724946169170,0.38642,2587.0,2586.4,0.96624]
[1724946169374,0.38642,2587.0,2586.5,0.9133]
[1724946169577,0.38642,2586.9,2586.7,0.38644]
[1724946169784,4.61415359,2587.0,2586.8,0.38643]
[1724946170077,7.41939721,2587.1,2586.9,0.38642]
[1724946170571,7.41939721,2587.1,2587.0,0.38641]
[1724946170779,7.80578721,2587.1,2587.0,0.38641]
[1724946170972,7.41939721,2587.1,2587.0,0.38641]
[1724946171974,7.41939721,2587.1,2586.9,0.38641]
[1724946172173,7.80578721,2587.1,2586.9,0.38641]
[1724946172474,3.21359721,2587.1,2587.0,0.38641]
[1724946173077,3.21359721,2587.1,2586.9,0.38641]
[1724946173263,3.21359721,2587.1,2586.8,0.9096]
[1724946173469,0.38642,2586.9,2586.8,0.9096]
[1724946173678,0.38642,2587.0,2586.8,1.29603]
[1724946173865,6.54359721,2587.1,2586.6,0.38646]
[1724946173866,0.38644,2586.8,2586.6,0.38646]
[1724946174073,7.74249845,2586.9,2586.5,0.9133]
[1724946174266,4.41249845,2587.0,2586.5,0.9133]
[1724946174474,3.72219721,2587.1,2587.0,0.38641]
[1724946174475,3.33579721,2587.1,2587.0,0.38641]
[1724946175072,0.00579721,2587.1,2587.0,0.38641]
[1724946177285,0.00579721,2587.1,2587.0,1.27821]
[1724946177579,6.5378,2587.8,2587.5,0.38632]
[1724946177775,0.36632,2587.7,2587.5,0.38632]
[1724946177976,4.13631757,2587.6,2587.5,0.38632]
[1724946178373,0.36632,2587.7,2587.6,0.38632]
[1724946178575,3.2078,2587.8,2587.7,0.3863]
[1724946178981,3.2078,2587.8,2587.7,4.2503]
[1724946179178,3.2078,2587.8,2587.7,0.3863]
[1724946179575,0.00579721,2588.0,2587.9,0.38627]
[1724946180789,0.00579721,2588.0,2587.9,4.25027]
[1724946180977,0.00579721,2588.0,2587.9,3.864]
[1724946181180,0.3863,2587.7,2587.6,0.8918]
[1724946181380,0.38632,2587.6,2587.5,0.00579721]
[1724946181686,5.01182959,2587.6,2587.5,0.00579721]
[1724946181876,4.18212959,2587.6,2587.5,0.39212721]
[1724946182082,0.3863,2587.8,2587.6,0.38631]
[1724946182273,4.54598,2587.9,2587.6,0.38631]
[1724946182577,4.56841959,2587.8,2587.6,0.38631]
[1724946182777,4.18212959,2587.8,2587.7,0.3863]
[1724946183577,0.38629,2587.8,2587.6,1.26951]
[1724946183779,4.54598,2587.9,2587.7,0.3863]
[1724946183980,0.38629,2587.8,2587.6,1.26951]
[1724946184280,0.3863,2587.7,2587.5,0.39212721]
[1724946184884,4.41915797,2587.8,2587.7,0.3863]
[1724946185077,3.59986721,2588.0,2587.8,0.38628]
[1724946185276,3.59986721,2588.0,2587.7,0.3863]
[1724946185277,0.38627,2587.9,2587.7,0.3863]
[1724946185481,4.43901917,2587.9,2587.7,1.2522]
[1724946185683,3.21359721,2588.0,2587.7,1.2522]
[1724946185684,3.21359721,2588.0,2587.9,0.38627]
[1724946187195,0.00579721,2588.0,2587.9,0.38627]
[1724946187380,0.00579721,2588.0,2587.8,1.24708]
[1724946187581,0.00579721,2588.0,2587.9,0.38627]
[1724946188186,0.00579721,2588.0,2587.8,1.24708]
[1724946188187,0.39205721,2588.0,2587.8,1.24708]
[1724946188487,0.38627,2587.9,2587.8,0.8608]
[1724946188984,3.21359721,2588.0,2587.8,0.8608]
[1724946189189,0.38627,2587.9,2587.8,0.8608]
[1724946189389,0.00579721,2588.0,2587.9,0.38627]
[1724946189984,0.39205721,2588.0,2587.8,0.8608]
[1724946190184,0.38627,2587.9,2587.8,1.24708]
[1724946190590,0.38629,2587.8,2587.7,0.8659]
[1724946191085,5.76365066,2587.8,2587.7,0.8659]
[1724946191288,0.38631,2587.7,2587.5,0.39212721]
[1724946191488,0.38632,2587.6,2587.5,0.00579721]
[1724946193490,0.38631,2587.7,2587.6,0.38632]
[1724946194000,0.38631,2587.7,2587.5,0.39211721]
[1724946194195,0.38632,2587.6,2587.5,0.39211721]
[1724946195198,0.38632,2587.6,2587.5,0.00579721]
[1724946195394,1.35212,2587.6,2587.5,0.00579721]
[1724946195592,4.55992,2587.6,2587.5,0.00579721]
[1724946197498,9.39052,2587.6,2587.5,0.00579721]
[1724946197792,0.96606,2586.9,2586.5,1.37441016]
[1724946197998,0.38647,2586.7,2586.4,6.01023016]
[1724946198293,4.04395349,2586.6,2586.4,5.40878]
[1724946198598,4.43043349,2586.6,2586.4,0.8313]
[1724946199191,4.04395349,2586.6,2586.5,4.25288]
[1724946199388,3.2078,2586.9,2586.8,0.38644]
[1724946199900,3.2078,2586.9,2586.8,4.25204]
[1724946200395,3.2078,2586.9,2586.8,3.8656]
[1724946200801,3.2078,2586.9,2586.8,4.25204]
[1724946200989,3.2078,2586.9,2586.8,7.58204]
[1724946201194,3.2078,2586.9,2586.8,13.58204]
[1724946201393,3.2078,2587.3,2586.8,14.18353016]
[1724946201702,3.2078,2587.3,2586.9,0.8356]
[1724946201703,0.38638,2587.2,2586.9,0.8356]
[1724946201997,0.38639,2587.2,2586.9,1.22202]
[1724946202594,0.38637,2587.3,2587.0,0.38641]
[1724946202902,4.73321249,2587.3,2587.0,0.38641]
[1724946203097,4.34684249,2587.3,2587.2,0.38638]
[1724946203395,0.38635,2587.4,2587.1,0.38638]
[1724946203595,0.38636,2587.3,2587.0,1.37433016]
[1724946203787,0.38638,2587.2,2586.9,0.8356]
[1724946203991,0.38641,2587.0,2586.8,5.17893016]
[1724946204192,0.38641,2587.0,2586.8,4.191]
[1724946204895,5.47953594,2587.1,2586.8,4.57743]
[1724946205301,5.09313594,2587.1,2586.9,0.38642]
[1724946205498,0.38637,2587.3,2587.0,0.38641]
[1724946205695,4.1797,2587.4,2587.1,0.38638]
[1724946205696,3.33,2587.4,2587.1,0.38638]
[1724946205897,4.13816496,2587.3,2587.1,0.38638]
[1724946206205,4.52453496,2587.3,2587.0,0.3864]
[1724946206398,4.52453496,2587.3,2586.9,0.38641]
[1724946206399,0.38638,2587.2,2586.9,0.38641]
[1724946206607,0.38639,2587.2,2586.9,0.38642]
[1724946206999,4.13816496,2587.3,2586.8,5.17893016]
[1724946207398,4.52452496,2587.3,2586.8,0.98793016]
[1724946207705,4.13816496,2587.3,2587.1,0.38639]
[1724946207906,4.52452496,2587.3,2587.1,0.38639]
[1724946208502,4.13816496,2587.3,2586.9,0.98793016]
[1724946208802,4.13816496,2587.3,2587.0,1.2835]
[1724946209001,4.13816496,2587.3,2587.2,0.38638]
[1724946209207,3.71635,2587.4,2587.1,0.38639]
[1724946209414,3.33,2587.4,2587.2,0.38637]
[1724946209612,3.33,2587.4,2587.0,0.8971]
[1724946209911,0.38639,2587.1,2587.0,0.8971]
[1724946210200,0.38642,2586.9,2586.8,0.98793016]
[1724946210400,0.38642,2586.9,2586.7,1.37438016]
[1724946210599,0.38642,2587.0,2586.7,1.37438016]
[1724946210802,0.38643,2586.9,2586.7,0.38645]
[1724946211005,4.39692609,2586.9,2586.6,10.12163016]
[1724946211201,0.38645,2586.8,2586.6,4.9427]
[1724946211605,0.38645,2586.8,2586.6,3.2078]
[1724946211606,0.38644,2586.8,2586.6,3.2078]
[1724946212006,0.38644,2586.8,2586.6,3.59426]
[1724946213002,0.38645,2586.7,2586.6,3.2078]
[1724946213203,0.38645,2586.7,2586.6,3.59427]
[1724946213511,0.38645,2586.7,2586.6,3.2078]
[1724946213806,0.38648,2586.5,2586.4,1.37442016]
[1724946214013,0.38648,2586.5,2586.3,2.72823016]
[1724946214313,0.38647,2586.6,2586.4,1.37442016]
[1724946214502,0.38647,2586.6,2586.4,0.38649]
[1724946214704,0.38648,2586.5,2586.3,3.11473016]
[1724946215011,0.38648,2586.5,2586.3,2.72823016]
[1724946215210,0.38649,2586.5,2586.3,2.72823016]
[1724946215409,0.38648,2586.6,2586.3,3.11474016]
[1724946215810,0.38648,2586.5,2586.3,2.72823016]
[1724946216006,0.3865,2586.4,2586.3,1.7403]
[1724946216926,0.38651,2586.3,2586.2,0.00579721]
[1724946217317,0.3865,2586.4,2586.2,3.87219721]
[1724946217510,0.38651,2586.3,2586.2,0.00579721]
[1724946218311,4.59130558,2586.3,2586.2,0.00579721]
[1724946219413,12.75399558,2586.3,2586.2,0.00579721]
[1724946219616,18.75399558,2586.3,2586.2,0.00579721]
[1724946220409,0.00579721,2586.7,2586.2,20.33733572]
[1724946220612,0.00579721,2586.7,2586.6,3.59427]
[1724946220802,0.00579721,2586.7,2586.6,4.50667]
[1724946221007,0.00579721,2586.7,2586.6,49.17307]
[1724946221707,0.00579721,2586.7,2586.6,50.16693924]
[1724946222413,0.8784,2587.5,2587.1,0.38638]
[1724946222613,0.8784,2587.5,2587.4,3.2078]
[1724946222814,4.7432,2587.5,2587.4,3.2078]
[1724946223006,8.85007247,2587.5,2587.4,3.2078]
[1724946223203,4.98527247,2587.5,2587.4,3.2078]
[1724946223922,5.37160247,2587.5,2587.4,3.2078]
[1724946224111,9.23640247,2587.5,2587.4,3.2078]
[1724946224320,0.38638,2587.2,2586.9,0.9936951]
[1724946224613,12.18007247,2587.5,2586.8,3.59423]
[1724946224614,0.38637,2587.3,2586.8,3.59423]
[1724946224813,0.38636,2587.4,2586.8,3.2078]
[1724946225114,4.29889148,2587.3,2587.0,0.38641]
[1724946225315,4.29889148,2587.3,2587.1,3.2078]
[1724946226721,4.68526148,2587.3,2587.1,3.2078]
[1724946227115,0.38637,2587.3,2587.1,3.2078]
[1724946227318,0.38638,2587.2,2587.1,3.2078]
[1724946227513,0.38642,2587.0,2586.8,4.2014951]
[1724946227715,0.38642,2587.0,2586.8,3.2078]
[1724946227914,0.38644,2586.8,2586.6,0.9936951]
[1724946228121,5.17283527,2586.9,2586.4,4.2014951]
[1724946228420,4.25637945,2586.7,2586.4,3.5943]
[1724946228717,4.63817527,2586.8,2586.5,0.38648]
[1724946228921,0.9211,2586.9,2586.4,3.2078]
[1724946229108,4.45203249,2586.7,2586.4,3.2078]
[1724946229314,0.38647,2586.6,2586.4,3.2078]
[1724946229510,0.38648,2586.5,2586.4,3.2078]
[1724946229816,0.38648,2586.5,2586.2,0.00579721]
[1724946229817,4.58462248,2586.5,2586.2,0.00579721]
[1724946230011,0.9211,2586.4,2586.2,0.39232721]
[1724946230218,5.11924248,2586.4,2586.2,0.39232721]
[1724946230722,0.9211,2586.4,2586.2,0.00579721]
[1724946231222,1.3076,2586.4,2586.2,0.00579721]
[1724946231423,0.38651,2586.3,2586.2,0.00579721]
[1724946231623,1.3076,2586.4,2586.2,0.00579721]
[1724946231825,0.38651,2586.3,2586.2,0.00579721]
[1724946232130,4.70473406,2586.3,2586.2,0.00579721]
[1724946233126,4.31822406,2586.3,2586.2,0.00579721]
[1724946233629,4.70473406,2586.3,2586.2,0.00579721]
[1724946234621,8.57113406,2586.3,2586.2,0.00579721]
[1724946235032,0.38656,2586.0,2585.9,4.232]
[1724946235321,4.42449815,2586.0,2585.9,4.232]
[1724946235529,4.03793815,2586.0,2585.9,4.232]
[1724946235719,4.42449815,2586.0,2585.9,4.232]
[1724946235919,0.38656,2586.0,2585.9,4.232]
[1724946236116,8.69292253,2586.0,2585.9,4.232]
[1724946236315,4.43916253,2586.0,2585.9,4.232]
[1724946236516,0.39232721,2586.2,2585.9,4.61857]
[1724946236822,4.34921177,2586.1,2585.9,4.232]
[1724946237018,4.73576177,2586.1,2585.9,4.232]
[1724946237823,0.38656,2586.0,2585.9,4.232]
[1724946238131,4.41581513,2586.0,2585.9,4.232]
[1724946238326,8.28301513,2586.0,2585.9,4.232]
[1724946239124,9.24941513,2586.0,2585.9,4.232]
[1724946239443,15.24941513,2586.0,2585.9,4.232]
[1724946239627,9.24941513,2586.0,2585.9,4.232]
[1724946240029,15.24941513,2586.0,2585.9,4.232]
[1724946240630,9.24941513,2586.0,2585.9,4.232]
[1724946240832,8.28301513,2586.0,2585.9,4.232]
[1724946241432,9.24941513,2586.0,2585.9,4.232]
[1724946241729,0.3866,2585.7,2585.6,3.863]
[1724946241939,0.3866,2585.7,2584.6,3.67986386]
[1724946241940,5.41651,2585.7,2584.6,3.67986386]
[1724946242227,4.83673,2584.9,2584.6,1.8023]
[1724946242427,4.45,2584.9,2584.3,4.2014951]
[1724946242621,4.83678,2584.6,2584.4,0.38679]
[1724946242827,0.38678,2584.5,2584.3,1.2991]
[1724946243130,4.45,2584.6,2584.3,0.9123]
[1724946243336,4.45,2584.6,2584.4,3.59459]
[1724946243520,0.38678,2584.5,2584.4,3.2078]
[1724946243726,1.35385,2584.3,2584.2,0.00579721]
[1724946243925,9.01165,2584.3,2584.2,0.00579721]
[1724946244127,4.45,2584.3,2584.2,0.00579721]
[1724946244325,4.45579721,2584.8,2584.4,0.38679]
[1724946244530,0.967,2584.4,2584.2,3.21359721]
[1724946244732,5.29382413,2584.3,2584.2,0.00579721]
[1724946244929,3.2078,2584.3,2583.6,3.2078]
[1724946245125,4.45,2584.0,2583.7,0.38689]
[1724946245327,0.38688,2583.9,2583.7,0.38689]
[1724946245628,0.38688,2583.9,2583.6,3.2078]
[1724946245629,4.32114542,2583.9,2583.6,3.2078]
[1724946246031,4.45,2584.3,2583.9,0.38686]
[1724946246235,4.45,2584.3,2584.1,0.38683]
[1724946246533,4.64489112,2584.5,2584.0,4.059]
[1724946246735,4.45,2584.2,2583.3,42.8274951]
[1724946246954,4.45,2583.7,2583.3,41.8338]
[1724946247339,0.38693,2583.5,2583.3,41.8338]
[1724946247747,0.38693,2583.5,2583.3,45.705]
[1724946248231,0.38695,2583.4,2583.3,45.705]
[1724946248544,0.38695,2583.4,2583.3,38.626]
[1724946248733,0.38695,2583.4,2583.3,42.4972]
[1724946248934,9.67552,2583.4,2583.3,38.626]
[1724946249235,20.88826708,2583.4,2583.3,19.03215]
[1724946249438,20.88826708,2583.4,2583.3,17.06404]
[1724946249636,20.88826708,2583.4,2583.3,16.28631]
[1724946249841,14.69537708,2583.4,2581.7,3.2078]
[1724946250027,4.45,2582.4,2582.0,3.2078]
[1724946250332,4.45,2582.6,2582.3,3.2078]
[1724946250529,4.45,2582.6,2582.5,0.38708]
[1724946250729,4.45,2582.6,2582.4,0.8614]
[1724946251035,8.6248547,2582.5,2582.4,0.8614]
[1724946251238,4.45,2582.5,2582.4,0.8614]
[1724946251533,4.1748547,2582.5,2582.4,5.12049]
[1724946251729,4.45579721,2582.8,2582.4,4.7334]
[1724946251926,4.45579721,2582.8,2582.5,3.59487]
[1724946252132,4.24384339,2582.7,2582.1,3.2078]
[1724946252333,0.3871,2582.4,2582.1,3.2078]
[1724946252733,0.38713,2582.2,2582.1,3.2078]
[1724946252933,4.43114519,2582.3,2581.9,3.2078]
[1724946253131,0.38717,2582.0,2581.6,0.38721]
[1724946253326,0.38718,2581.9,2581.5,3.59502]
[1724946253531,4.45,2582.2,2581.5,44.0078]
[1724946253734,4.43114519,2582.1,2581.8,3.2078]
[1724946254028,0.38716,2582.0,2581.8,3.2078]
[1724946254234,0.38717,2581.9,2581.8,3.2078]
[1724946254436,4.43114519,2582.1,2581.8,3.2078]
[1724946254734,4.45,2582.2,2581.8,3.2078]
[1724946254935,0.38718,2581.9,2581.5,0.38722]
[1724946255136,0.38718,2581.9,2581.0,0.96824]
[1724946255137,0.38728,2581.2,2581.1,3.2078]
[1724946255328,4.83728,2581.2,2580.7,0.8745]
[1724946255532,0.38732,2581.0,2580.7,0.8745]
[1724946255732,4.30174093,2581.1,2580.7,1.26185]
[1724946255937,0.38731,2581.0,2580.7,0.8745]
[1724946256242,0.3874,2580.4,2580.3,3.2078]
[1724946256435,8.78734389,2580.9,2580.3,3.2078]
[1724946256630,0.38738,2580.5,2580.3,3.2078]
[1724946256942,8.73628145,2580.4,2579.9,3.2078]
[1724946257143,8.73628145,2580.4,2579.9,3.59526]
[1724946257440,0.38746,2580.0,2579.9,3.2078]
[1724946258635,4.45,2580.4,2579.9,3.2078]
[1724946258946,4.83733,2580.9,2580.3,3.2078]
[1724946259346,7.6578,2581.3,2580.8,3.2078]
[1724946259648,0.00580844,2581.4,2581.2,0.38727]
[1724946259844,0.00580844,2581.4,2581.3,0.38726]
[1724946260046,0.00580844,2581.4,2581.3,6.38726]
[1724946260248,7.6378,2582.2,2581.3,0.96816]
[1724946260448,4.45,2581.9,2581.3,3.2078]
[1724946260741,4.83722,2581.6,2581.3,3.2078]
[1724946260946,4.83725,2581.4,2581.3,3.2078]
[1724946261135,5.80537,2581.4,2581.3,3.2078]
[1724946261337,9.1449542,2581.4,2581.3,3.2078]
[1724946261640,0.38728,2581.2,2581.1,0.00580844]
[1724946261837,1.35548,2581.2,2581.1,0.00580844]
[1724946262035,8.77044231,2581.2,2581.1,0.00580844]
[1724946262242,3.2078,2581.5,2581.2,0.38727]
[1724946262441,0.38725,2581.4,2581.1,0.00580844]
[1724946262639,4.12044231,2581.4,2581.3,0.38726]
[1724946263342,0.38725,2581.4,2581.3,3.8736]
[1724946263550,0.38725,2581.4,2581.1,3.21360844]
[1724946263551,0.3874,2580.4,2580.3,3.2078]
[1724946263734,0.3874,2580.4,2579.9,0.8614]
[1724946263735,1.10451,2580.4,2579.9,4.9602]
[1724946263941,1.10451,2580.3,2580.2,3.59523]
[1724946264141,0.38732,2581.0,2580.6,0.38736]
[1724946264439,0.38732,2581.0,2580.8,3.2078]
[1724946264440,1.10451,2580.9,2580.8,3.2078]
[1724946264642,4.16879429,2581.0,2580.8,3.2078]
[1724946264844,0.38727,2581.3,2580.9,5.17271]
[1724946265142,4.34151444,2581.4,2581.2,0.38728]
[1724946265342,4.34151444,2581.4,2581.1,3.2078]
[1724946265545,0.00580844,2581.6,2581.1,3.2078]
[1724946265742,1.10451,2581.2,2581.1,3.2078]
[1724946265943,1.10451,2581.2,2581.1,3.59509]
[1724946266142,1.10451,2581.2,2581.1,3.2078]
[1724946266349,1.10451,2581.2,2580.8,3.2078]
[1724946266535,1.10451,2580.6,2580.4,3.2078]
[1724946266936,1.10451,2580.5,2580.1,3.2078]
[1724946267143,1.49189,2580.5,2580.1,3.59523]
[1724946267344,0.3874,2580.4,2580.1,3.2078]
[1724946267548,1.49194,2580.2,2580.1,3.2078]
[1724946268145,3.2078,2580.7,2580.1,7.0838]
[1724946268146,0.38738,2580.6,2580.1,7.0838]
[1724946268351,1.10451,2580.4,2580.2,1.29582]
[1724946268647,4.47700431,2580.6,2580.2,2.7182]
[1724946268845,1.10451,2580.3,2580.2,2.7182]
[1724946270046,0.38743,2580.2,2580.1,3.2078]
[1724946270245,2.46051,2580.2,2580.1,3.2078]
[1724946270447,6.83503303,2580.2,2580.1,3.2078]
[1724946270751,1.49194,2580.2,2580.1,3.2078]
[1724946271139,1.10451,2580.2,2580.1,3.2078]
[1724946271340,1.49194,2580.2,2580.1,3.2078]
[1724946272340,0.38747,2579.9,2579.8,57.128]
[1724946272541,0.38747,2579.9,2579.8,57.51549]
[1724946272542,1.10451,2579.9,2579.8,57.51549]
[1724946272945,0.38739,2580.5,2579.9,3.876]
[1724946273247,8.69728382,2580.6,2580.2,3.2078]
[1724946273445,0.38741,2580.4,2580.2,3.2078]
[1724946273646,8.69728382,2580.6,2580.4,0.38739]
[1724946273849,4.65,2581.0,2580.5,4.1278]
[1724946274046,4.65580844,2581.0,2580.8,3.2078]
[1724946274246,5.04311844,2581.0,2580.8,3.2078]
[1724946274550,0.38735,2580.8,2580.5,0.92580844]
[1724946274849,4.56391508,2580.9,2580.5,0.92580844]
[1724946275044,4.65580844,2581.0,2580.7,3.2078]
[1724946275357,0.00580844,2581.0,2580.9,0.38732]
[1724946275952,0.00580844,2581.0,2580.9,5.23003]
[1724946276155,0.38723,2581.6,2581.2,0.38727]
[1724946276352,0.38725,2581.4,2581.3,3.2078]
[1724946276553,0.38729,2581.1,2581.0,1.7136]
[1724946277050,0.38728,2581.2,2581.0,1.7136]
[1724946277362,0.38729,2581.1,2581.0,1.7136]
[1724946277649,0.38733,2580.9,2580.6,40.8]
[1724946277851,0.38734,2580.8,2580.7,3.2078]
[1724946278045,4.69378906,2581.1,2580.7,3.2078]
[1724946278256,4.69378906,2581.1,2580.8,0.38733]
[1724946278257,4.11284906,2581.1,2580.8,0.38733]
[1724946278552,3.72554906,2581.1,2580.9,0.38731]
[1724946278747,3.72554906,2581.1,2581.0,0.38731]
[1724946278953,0.00580844,2581.3,2581.1,0.38728]
[1724946279153,0.00580844,2581.3,2581.2,0.38728]
[1724946279654,0.00580844,2581.3,2581.2,5.18898]
[1724946279958,13.63518199,2581.3,2581.1,0.9131]
[1724946280144,1.35548,2581.2,2581.1,0.9131]
[1724946280547,4.52409355,2581.2,2581.1,0.9131]
[1724946280854,0.38728,2581.2,2581.1,0.9131]
[1724946281447,4.65580844,2581.3,2581.1,0.9131]
[1724946281649,0.00580844,2581.3,2581.1,1.30039]
[1724946281860,0.00580844,2581.3,2581.2,0.38728]
[1724946282050,4.46,2581.8,2581.2,3.8744]
[1724946282356,4.46,2581.8,2581.3,4.0654]
[1724946282357,0.38725,2581.4,2581.3,4.0654]
[1724946282561,4.84724,2581.5,2581.3,4.45266]
[1724946282851,4.46,2581.5,2581.3,4.0654]
[1724946283057,5.72807381,2581.4,2581.3,4.0654]
[1724946283254,0.38728,2581.2,2581.1,0.9131]
[1724946283550,5.81548,2581.2,2581.1,0.9131]
[1724946283948,0.00580844,2581.7,2581.1,1.30039]
[1724946283949,0.38727,2581.3,2581.1,1.30039]
[1724946284145,4.46,2581.5,2581.1,0.9131]
[1724946284352,4.0493552,2581.6,2581.5,0.38723]
[1724946284548,0.38725,2581.4,2581.3,3.2078]
[1724946284749,0.38728,2581.2,2581.1,0.9131]
[1724946284959,1.35548,2581.2,2581.1,0.9131]
[1724946285166,1.35548,2581.2,2581.1,4.7875]
[1724946285350,0.38728,2581.2,2581.1,0.9131]
[1724946285547,5.4281,2581.5,2581.1,0.9131]
[1724946285750,5.4281,2581.5,2581.1,1.30038]
[1724946285959,5.4281,2581.5,2581.1,0.9131]
[1724946286157,0.38728,2581.2,2581.1,0.9131]
[1724946286553,0.38727,2581.3,2581.1,5.17478]
[1724946286762,0.38727,2581.3,2581.2,0.38728]
[1724946286956,0.38728,2581.2,2581.1,0.9131]
[1724946287162,1.35553,2581.1,2581.0,3.2078]
[1724946287465,1.35569,2580.8,2580.7,0.8814]
[1724946287652,5.81569,2580.8,2580.7,0.8814]
[1724946288253,1.35574,2580.7,2580.6,0.871]
[1724946288467,0.38735,2580.7,2580.6,0.871]
[1724946288663,0.38735,2580.7,2580.6,2.6436]
[1724946288863,1.35574,2580.7,2580.6,1.7283]
[1724946289054,5.66102652,2580.7,2580.6,0.871]
[1724946289361,2.32421,2580.6,2580.5,0.00580844]
[1724946290859,1.35579,2580.6,2580.5,0.00580844]
[1724946291158,0.38737,2580.6,2580.5,0.00580844]
[1724946292156,4.84734,2580.8,2580.5,3.88100844]
[1724946292355,4.46,2580.8,2580.7,0.38735]
[1724946292556,4.46,2580.8,2580.5,0.00580844]
[1724946292557,4.46,2580.8,2580.6,0.9191]
[1724946292757,4.46,2580.8,2580.7,1.26215]
[1724946293964,4.84734,2580.8,2580.7,1.26215]
[1724946294861,3.59513,2580.9,2580.8,0.38734]
[1724946295158,0.38732,2580.9,2580.8,0.38734]
[1724946295370,0.38732,2580.9,2580.8,3.8744]
[1724946295556,0.38732,2580.9,2580.8,4.26174]
[1724946295757,0.38729,2581.2,2581.0,0.3873]
[1724946296067,0.38728,2581.2,2581.0,3.59509]
[1724946296263,4.46,2581.3,2581.0,3.59509]
[1724946296485,0.38728,2581.2,2581.0,3.5951]
[1724946296668,0.38728,2581.2,2581.1,0.38729]
[1724946296855,4.46,2581.3,2581.1,0.38728]
[1724946297173,4.84727,2581.3,2581.1,0.38729]
[1724946297555,4.46,2581.3,2581.2,0.38728]
[1724946297873,0.38728,2581.2,2581.1,3.8744]
[1724946298165,0.38728,2581.2,2581.1,0.38729]
[1724946298358,0.38728,2581.2,2581.1,4.26169]
[1724946299061,4.46,2581.3,2581.2,0.38728]
[1724946299265,0.38728,2581.2,2581.1,3.8744]
[1724946299475,0.38729,2581.1,2581.0,3.2078]
[1724946299656,1.35553,2581.1,2581.0,3.2078]
[1724946300258,0.38729,2581.1,2581.0,3.2078]
[1724946300670,1.35553,2581.1,2581.0,3.2078]
[1724946301165,0.38729,2581.1,2581.0,3.2078]
[1724946301563,0.38729,2581.1,2581.0,3.59511]
[1724946301758,4.46,2581.3,2581.2,0.38728]
[1724946301959,4.46,2581.3,2581.2,4.26168]
[1724946302262,5.42806,2581.6,2581.2,3.8744]
[1724946302469,0.38726,2581.4,2581.3,0.38726]
[1724946302658,0.00580844,2581.7,2581.5,0.38723]
[1724946302862,0.00580844,2581.7,2581.6,5.50027]
[1724946303161,0.0014303,2581.7,2581.6,15.3995151]
[1724946303563,4.17557,2582.4,2581.6,16.94814032]
[1724946303564,7.6678,2582.4,2581.6,16.94814032]
[1724946303766,7.6678,2582.4,2582.0,3.2078]
[1724946303963,4.46,2582.2,2582.0,3.2078]
[1724946304371,0.38714,2582.1,2582.0,3.2078]
[1724946304869,4.84714,2582.2,2582.0,3.2078]
[1724946305163,3.60070844,2582.4,2582.1,0.38713]
[1724946305366,0.00580844,2582.4,2582.3,0.38711]
[1724946305575,0.00580844,2582.4,2582.3,3.59491]
[1724946305959,0.00580844,2582.4,2582.3,3.2078]
[1724946306174,0.39290844,2582.4,2582.3,3.2078]
[1724946306665,0.38716,2582.0,2581.9,4.089]
[1724946307066,4.46,2582.1,2581.9,7.9618]
[1724946307269,4.46580844,2582.4,2582.0,3.8728]
[1724946307572,4.46580844,2582.4,2582.2,3.2078]
[1724946307771,0.38711,2582.3,2582.2,3.2078]